fUSD/lending_fUSD_20250526
["ID","MTS","AMOUNT","RATE_DAILY","PERIOD"]
[362367949,1748221834117,-420.0,0.00019899,2]
[362367950,1748221834127,-420.0,0.00019899,2]
[362367951,1748221834136,-437.03033696,0.00019899,2]
[362367952,1748221834145,-420.0,0.00019899,2]
[362367953,1748221834154,-420.0,0.00019899,2]
[362367954,1748221834163,-420.0,0.00019899,2]
[362367955,1748221834172,-420.0,0.00019899,2]
[362367956,1748221834181,-300.89114032,0.00019899,2]
[362367957,1748221834191,-420.0,0.00019899,2]
[362367958,1748221834200,-420.0,0.00019899,2]
[362367959,1748221834209,-432.05036172,0.00019899,2]
[362367960,1748221834219,-530.9905292,0.00019899,2]
[362367961,1748221834228,-427.65910189,0.00019899,2]
[362367962,1748221834237,-420.0,0.00019899,2]
[362367963,1748221834247,-420.0,0.00019899,2]
[362367964,1748221834256,-338.76303718,0.00019899,2]
[362367965,1748221834266,-420.0,0.00019899,2]
[362367966,1748221834275,-420.0,0.00019899,2]
[362367967,1748221834284,-420.0,0.00019899,2]
[362367968,1748221834294,-438.9439622,0.00019899,2]
[362367969,1748221834303,-519.05496339,0.00019899,2]
[362367970,1748221834312,-420.0,0.00019899,2]
[362367971,1748221834322,-420.0,0.00019899,2]
[362367972,1748221834332,-437.73603163,0.00019899,2]
[362367973,1748221834342,-420.0,0.00019899,2]
[362367974,1748221834351,-420.0,0.00019899,2]
[362367975,1748221834360,-491.83544833,0.00019899,2]
[362367976,1748221834370,-429.85232722,0.00019899,2]
[362367977,1748221834380,-420.0,0.00019899,2]
[362367978,1748221834389,-420.0,0.00019899,2]
[362367979,1748221834398,-434.32396477,0.00019899,2]
[362367980,1748221834408,-420.0,0.00019899,2]
[362367981,1748221834417,-420.0,0.00019899,2]
[362367982,1748221834426,-420.0,0.00019899,2]
[362367983,1748221834436,-426.88489583,0.00019899,2]
[362367984,1748221834445,-430.25559945,0.00019899,2]
[362367985,1748221834455,-420.0,0.00019899,2]
[362367986,1748221834464,-420.0,0.00019899,2]
[362367987,1748221834474,-427.43713824,0.00019899,2]
[362367988,1748221834483,-420.0,0.00019899,2]
[362367989,1748221834492,-420.0,0.00019899,2]
[362367990,1748221834501,-443.86062152,0.00019899,2]
[362367991,1748221834510,-427.54619236,0.00019899,2]
[362367992,1748221834519,-420.0,0.00019899,2]
[362367993,1748221834528,-420.0,0.00019899,2]
[362367994,1748221834538,-440.11310821,0.00019899,2]
[362367995,1748221834547,-437.534995,0.00019899,2]
[362367996,1748221834556,-420.0,0.00019899,2]
[362367997,1748221834565,-420.0,0.00019899,2]
[362367998,1748221834575,-396.07,0.00019899,2]
[362367999,1748221834585,-420.0,0.00019899,2]
[362368000,1748221834594,-250.46,0.00019899,2]
[362368001,1748221834604,-420.0,0.00019899,2]
[362368002,1748221834613,-420.0,0.00019899,2]
[362368003,1748221834623,-452.09999751,0.00019899,2]
[362368004,1748221834632,-420.0,0.00019899,2]
[362368005,1748221834641,-409.19025048,0.00019899,2]
[362368009,1748221838218,-843.0,0.00019684,2]
[362368010,1748221838227,-252.06681087,0.00019877,2]
[362368011,1748221838236,-42.90453913,0.00019877,2]
[362368036,1748221840453,-20.58360103,0.00019877,2]
[362368037,1748221840464,-323.10538821,0.00019877,2]
[362368038,1748221840477,-455.51253991,0.00019877,2]
[362368039,1748221840487,-190.66502939,0.00019877,2]
[362368040,1748221840497,-252.1474307,0.00019877,2]
[362368041,1748221840509,-589.95863758,0.00019877,2]
[362368042,1748221840519,-842.10606828,0.00019877,2]
[362368043,1748221840529,-842.10606828,0.00019877,2]
[362368044,1748221840540,-842.10606828,0.00019877,2]
[362368045,1748221840549,-842.10606828,0.00019877,2]
[362368046,1748221840559,-842.10606828,0.00019877,2]
[362368047,1748221840571,-842.10606828,0.00019877,2]
[362368048,1748221840581,-842.10606828,0.00019877,2]
[362368049,1748221840592,-842.10606828,0.00019877,2]
[362368050,1748221840602,-842.10606828,0.00019877,2]
[362368051,1748221840612,-842.10606828,0.00019877,2]
[362368052,1748221840621,-842.10606828,0.00019877,2]
[362368053,1748221840630,-842.10606828,0.00019877,2]
[362368054,1748221840639,-842.10606828,0.00019877,2]
[362368055,1748221840648,-842.10606828,0.00019877,2]
[362368056,1748221840657,-842.10606828,0.00019877,2]
[362368057,1748221840666,-842.10606828,0.00019877,2]
[362368058,1748221840676,-842.10606828,0.00019877,2]
[362368059,1748221840686,-842.10606828,0.00019877,2]
[362368060,1748221840697,-654.33213338,0.00019877,2]
[362368061,1748221840713,-187.7739349,0.00019877,2]
[362368062,1748221840724,-842.10606828,0.00019877,2]
[362368064,1748221840734,-842.10606828,0.00019877,2]
[362368065,1748221840743,-842.10606828,0.00019877,2]
[362368066,1748221840755,-842.10606828,0.00019877,2]
[362368067,1748221840765,-842.10606828,0.00019877,2]
[362368068,1748221840775,-842.10606828,0.00019877,2]
[362368069,1748221840785,-240.49,0.00019898,2]
[362368070,1748221840794,-420.0,0.00019898,2]
[362368071,1748221840804,-420.0,0.00019898,2]
[362368072,1748221840813,-420.0,0.00019898,2]
[362368073,1748221840823,-23.36873673,0.00019899,2]
[362368074,1748221840834,-420.0,0.00019899,2]
[362368075,1748221840844,-420.0,0.00019899,2]
[362368076,1748221840854,-420.0,0.00019899,2]
[362368077,1748221840863,-420.0,0.00019899,2]
[362368078,1748221840873,-420.0,0.00019899,2]
[362368079,1748221840882,-420.0,0.00019899,2]
[362368080,1748221840892,-420.0,0.00019899,2]
[362368081,1748221840901,-420.0,0.00019899,2]
[362368082,1748221840911,-420.0,0.00019899,2]
[362368083,1748221840921,-287.84,0.00019899,2]
[362368084,1748221840930,-500.0,0.00019899,2]
[362368085,1748221840939,-420.0,0.00019899,2]
[362368086,1748221840949,-505.49870276,0.00019899,2]
[362368087,1748221840959,-420.0,0.00019899,2]
[362368088,1748221840969,-420.0,0.00019899,2]
[362368089,1748221840979,-420.0,0.00019899,2]
[362368090,1748221840988,-503.52265015,0.00019899,2]
[362368091,1748221840999,-450.31712268,0.00019899,2]
[362368092,1748221841008,-420.0,0.00019899,2]
[362368093,1748221841018,-508.72721163,0.00019899,2]
[362368094,1748221841028,-420.0,0.00019899,2]
[362368095,1748221841038,-420.0,0.00019899,2]
[362368096,1748221841047,-453.23413769,0.00019899,2]
[362368097,1748221841056,-420.0,0.00019899,2]
[362368098,1748221841066,-420.0,0.00019899,2]
[362368099,1748221841076,-420.0,0.00019899,2]
[362368100,1748221841085,-420.0,0.00019899,2]
[362368101,1748221841095,-420.0,0.00019899,2]
[362368102,1748221841105,-500.0,0.00019899,2]
[362368103,1748221841115,-432.65298847,0.00019899,2]
[362368104,1748221841125,-420.0,0.00019899,2]
[362368105,1748221841135,-420.0,0.00019899,2]
[362368106,1748221841144,-420.0,0.00019899,2]
[362368107,1748221841153,-477.53,0.00019899,2]
[362368108,1748221841162,-429.89,0.00019899,2]
[362368109,1748221841172,-420.0,0.00019899,2]
[362368110,1748221841181,-448.97780986,0.00019899,2]
[362368111,1748221841191,-420.0,0.00019899,2]
[362368112,1748221841200,-420.0,0.00019899,2]
[362368113,1748221841210,-158.8002,0.00019899,2]
[362368114,1748221841219,-420.0,0.00019899,2]
[362368115,1748221841229,-420.0,0.00019899,2]
[362368116,1748221841239,-420.0,0.00019899,2]
[362368117,1748221841249,-420.0,0.00019899,2]
[362368118,1748221841258,-361.55,0.00019899,2]
[362368119,1748221841268,-436.17474096,0.00019899,2]
[362368120,1748221841452,-322.1940437,0.00019899,2]
[362368121,1748221841462,-420.0,0.00019899,2]
[362368122,1748221841471,-420.0,0.00019899,2]
[362368123,1748221841482,-420.0,0.00019899,2]
[362368124,1748221841492,-420.0,0.00019899,2]
[362368125,1748221841502,-546.93322733,0.00019899,2]
[362368126,1748221841513,-420.0,0.00019899,2]
[362368127,1748221841522,-440.01987102,0.00019899,2]
[362368128,1748221841531,-420.0,0.00019899,2]
[362368129,1748221841541,-420.0,0.00019899,2]
[362368130,1748221841550,-169.72064247,0.00019899,2]
[362368131,1748221841559,-420.0,0.00019899,2]
[362368132,1748221841568,-420.0,0.00019899,2]
[362368133,1748221841578,-420.0,0.00019899,2]
[362368134,1748221841587,-435.08086988,0.00019899,2]
[362368135,1748221841596,-437.07479368,0.00019899,2]
[362368136,1748221841606,-420.0,0.00019899,2]
[362368137,1748221841615,-420.0,0.00019899,2]
[362368138,1748221841625,-420.0,0.00019899,2]
[362368139,1748221841636,-425.13492581,0.00019899,2]
[362368140,1748221841646,-420.0,0.00019899,2]
[362368141,1748221841656,-420.0,0.00019899,2]
[362368142,1748221841666,-420.0,0.00019899,2]
[362368143,1748221841677,-430.73880481,0.00019899,2]
[362368144,1748221841688,-420.0,0.00019899,2]
[362368145,1748221841700,-420.0,0.00019899,2]
[362368146,1748221841709,-420.0,0.00019899,2]
[362368147,1748221841718,-420.0,0.00019899,2]
[362368148,1748221841728,-420.0,0.00019899,2]
[362368149,1748221841738,-420.0,0.00019899,2]
[362368150,1748221841748,-420.0,0.00019899,2]
[362368151,1748221841759,-437.81174001,0.00019899,2]
[362368152,1748221841768,-420.0,0.00019899,2]
[362368153,1748221841777,-420.0,0.00019899,2]
[362368154,1748221841787,-420.0,0.00019899,2]
[362368155,1748221841796,-420.0,0.00019899,2]
[362368156,1748221841806,-435.4456672,0.00019899,2]
[362368157,1748221841816,-420.0,0.00019899,2]
[362368158,1748221841825,-420.0,0.00019899,2]
[362368159,1748221841835,-430.71705485,0.00019899,2]
[362368160,1748221841845,-428.31007837,0.00019899,2]
[362368161,1748221841855,-420.0,0.00019899,2]
[362368162,1748221841864,-440.38502486,0.00019899,2]
[362368163,1748221841874,-420.0,0.00019899,2]
[362368164,1748221841883,-283.58972554,0.00019899,2]
[362368165,1748221841892,-420.0,0.00019899,2]
[362368166,1748221841901,-420.0,0.00019899,2]
[362368167,1748221841911,-357.49677166,0.00019899,2]
[362368168,1748221841920,-420.0,0.00019899,2]
[362368169,1748221841930,-420.0,0.00019899,2]
[362368170,1748221841939,-420.0,0.00019899,2]
[362368171,1748221841948,-341.23,0.00019899,2]
[362368172,1748221841958,-420.0,0.00019899,2]
[362368173,1748221841967,-420.0,0.00019899,2]
[362368174,1748221841976,-420.0,0.00019899,2]
[362368175,1748221841986,-420.0,0.00019899,2]
[362368176,1748221841995,-420.0,0.00019899,2]
[362368177,1748221842004,-420.0,0.00019899,2]
[362368178,1748221842014,-420.0,0.00019899,2]
[362368179,1748221842023,-420.0,0.00019899,2]
[362368180,1748221842032,-420.0,0.00019899,2]
[362368181,1748221842041,-420.0,0.00019899,2]
[362368182,1748221842050,-420.0,0.00019899,2]
[362368183,1748221842060,-420.0,0.00019899,2]
[362368184,1748221842069,-420.0,0.00019899,2]
[362368185,1748221842079,-420.0,0.00019899,2]
[362368186,1748221842088,-420.0,0.00019899,2]
[362368187,1748221842097,-420.0,0.00019899,2]
[362368188,1748221842108,-420.0,0.00019899,2]
[362368189,1748221842117,-199.75090268,0.00019899,2]
[362368190,1748221842126,-532.48785778,0.00019899,2]
[362368191,1748221842135,-420.0,0.00019899,2]
[362368192,1748221842144,-271.5,0.00019899,2]
[362368193,1748221842154,-420.0,0.00019899,2]
[362368194,1748221842163,-344.89797076,0.00019899,2]
[362368195,1748221842172,-155.5831604,0.00019899,2]
[362368196,1748221842181,-523.61,0.00019899,2]
[362368197,1748221842190,-261.47785605,0.00019899,2]
[362368198,1748221842200,-420.0,0.00019899,2]
[362368199,1748221842209,-420.0,0.00019899,2]
[362368200,1748221842218,-420.0,0.00019899,2]
[362368201,1748221842227,-420.0,0.00019899,2]
[362368202,1748221842237,-420.0,0.00019899,2]
[362368203,1748221842246,-420.0,0.00019899,2]
[362368204,1748221842255,-247.86,0.00019899,2]
[362368205,1748221842264,-420.0,0.00019899,2]
[362368206,1748221842273,-420.0,0.00019899,2]
[362368207,1748221842282,-420.0,0.00019899,2]
[362368208,1748221842291,-420.0,0.00019899,2]
[362368209,1748221842299,-420.0,0.00019899,2]
[362368210,1748221842308,-467.92329815,0.00019899,2]
[362368211,1748221842317,-420.0,0.00019899,2]
[362368212,1748221842326,-420.0,0.00019899,2]
[362368213,1748221842336,-420.0,0.00019899,2]
[362368214,1748221842348,-370.19053315,0.00019899,2]
[362368215,1748221842357,-1000.0,0.00019899,2]
[362368216,1748221842367,-420.0,0.00019899,2]
[362368217,1748221842376,-725.62,0.00019899,2]
[362368218,1748221842385,-420.0,0.00019899,2]
[362368219,1748221842394,-420.0,0.00019899,2]
[362368220,1748221842403,-420.0,0.00019899,2]
[362368221,1748221842412,-423.64246995,0.00019899,2]
[362368222,1748221842421,-420.0,0.00019899,2]
[362368223,1748221842430,-420.0,0.00019899,2]
[362368224,1748221842439,-420.0,0.00019899,2]
[362368225,1748221842448,-420.0,0.00019899,2]
[362368226,1748221842457,-420.0,0.00019899,2]
[362368227,1748221842466,-420.0,0.00019899,2]
[362368228,1748221842476,-420.0,0.00019899,2]
[362368229,1748221842485,-420.0,0.00019899,2]
[362368230,1748221842495,-420.0,0.00019899,2]
[362368231,1748221842504,-420.0,0.00019899,2]
[362368232,1748221842514,-420.0,0.00019899,2]
[362368233,1748221842523,-420.0,0.00019899,2]
[362368234,1748221842531,-384.25,0.00019899,2]
[362368235,1748221842541,-420.0,0.00019899,2]
[362368236,1748221842550,-420.0,0.00019899,2]
[362368237,1748221842559,-420.0,0.00019899,2]
[362368238,1748221842568,-420.0,0.00019899,2]
[362368239,1748221842577,-398.16574508,0.00019899,2]
[362368240,1748221842586,-420.0,0.00019899,2]
[362368241,1748221842597,-420.0,0.00019899,2]
[362368242,1748221842606,-420.0,0.00019899,2]
[362368243,1748221842615,-420.0,0.00019899,2]
[362368244,1748221842624,-420.0,0.00019899,2]
[362368245,1748221842633,-420.0,0.00019899,2]
[362368246,1748221842642,-154.48,0.00019899,2]
[362368247,1748221842651,-420.0,0.00019899,2]
[362368248,1748221842660,-420.0,0.00019899,2]
[362368249,1748221842669,-420.0,0.00019899,2]
[362368250,1748221842678,-420.0,0.00019899,2]
[362368251,1748221842687,-500.0,0.00019899,2]
[362368252,1748221842696,-376.99,0.00019899,2]
[362368253,1748221842705,-420.0,0.00019899,2]
[362368254,1748221842714,-420.0,0.00019899,2]
[362368255,1748221842723,-500.0,0.000199,2]
[362368256,1748221842732,-35963.1112,0.000199,2]
[362368257,1748221842742,-726.1841,0.000199,2]
[362368258,1748221842751,-1000.0,0.000199,2]
[362368259,1748221842765,-2671.62280186,0.000199,2]
[362368260,1748221842775,-82594.9223,0.000199,2]
[362368261,1748221842785,-47734.00057615,0.000199,2]
[362368262,1748221842794,-335.95186514,0.000199,2]
[362368263,1748221842805,-4991.53781772,0.000199,2]
[362368265,1748221842814,-600.0,0.000199,7]
[362368266,1748221842823,-2795.00621034,0.000199,2]
[362368268,1748221842834,-2795.00621034,0.000199,2]
[362368269,1748221842844,-2795.00621034,0.000199,2]
[362368270,1748221842853,-2795.00621034,0.000199,2]
[362368271,1748221842862,-2795.00621034,0.000199,2]
[362368273,1748221842872,-207.32625873,0.000199,2]
[362368275,1748221842882,-2795.00621034,0.000199,2]
[362368277,1748221842891,-2795.00621034,0.000199,2]
[362368279,1748221842900,-2795.00621034,0.000199,2]
[362368281,1748221842911,-2795.00621034,0.000199,2]
[362368283,1748221842920,-151.92462188,0.000199,2]
[362368285,1748221842929,-6035.71397799,0.000199,2]
[362368287,1748221842939,-2795.00621034,0.000199,2]
[362368288,1748221842949,-2795.00621034,0.000199,2]
[362368289,1748221842958,-2795.00621034,0.000199,2]
[362368290,1748221842967,-2795.00621034,0.000199,2]
[362368291,1748221842976,-2795.00621034,0.000199,2]
[362368292,1748221842985,-2795.00621034,0.000199,2]
[362368293,1748221842994,-2795.00621034,0.000199,2]
[362368294,1748221843004,-165.39924871,0.000199,2]
[362368295,1748221843013,-2795.00621034,0.000199,2]
[362368296,1748221843023,-2795.00621034,0.000199,2]
[362368297,1748221843032,-2795.00621034,0.000199,2]
[362368298,1748221843041,-2795.00621034,0.000199,2]
[362368299,1748221843050,-350.57616788,0.000199,2]
[362368300,1748221843059,-3081.44419973,0.000199,2]
[362368301,1748221843069,-1100.0,0.0001997,2]
[362368302,1748221843079,-559.7214222,0.00019973,2]
[362368303,1748221843088,-500.0,0.00019973,2]
[362368304,1748221843097,-500.0,0.00019973,2]
[362368305,1748221843106,-500.0,0.00019973,2]
[362368306,1748221843115,-500.0,0.00019973,2]
[362368307,1748221843124,-500.0,0.00019973,2]
[362368308,1748221843133,-500.0,0.00019973,2]
[362368309,1748221843143,-500.0,0.00019973,2]
[362368310,1748221843151,-500.0,0.00019973,2]
[362368311,1748221843160,-500.0,0.00019973,2]
[362368312,1748221843169,-500.0,0.00019982,2]
[362368313,1748221843178,-500.0,0.00019982,2]
[362368314,1748221843188,-500.0,0.00019982,2]
[362368315,1748221843197,-150.0,0.00019982,2]
[362368316,1748221843206,-211.10632547,0.0001999,2]
[362368317,1748221843215,-500.0,0.00019994,2]
[362368318,1748221843224,-330.01534231,0.00019994,2]
[362368319,1748221843233,-345.85,0.00019994,2]
[362368320,1748221843242,-535.28549879,0.00019994,2]
[362368321,1748221843251,-421.21,0.00019994,2]
[362368322,1748221843260,-420.0,0.00019994,2]
[362368323,1748221843269,-420.0,0.00019994,2]
[362368324,1748221843278,-420.0,0.00019994,2]
[362368325,1748221843287,-420.0,0.00019994,2]
[362368326,1748221843296,-420.0,0.00019994,2]
[362368327,1748221843305,-420.0,0.00019994,2]
[362368328,1748221843314,-420.0,0.00019994,2]
[362368329,1748221843323,-420.0,0.00019994,2]
[362368330,1748221843332,-363.25501846,0.00019994,2]
[362368331,1748221843342,-420.0,0.00019994,2]
[362368332,1748221843351,-209.27,0.00019994,2]
[362368333,1748221843360,-462.05,0.00019994,2]
[362368334,1748221843368,-266.5,0.00019994,2]
[362368335,1748221843378,-326.95,0.00019994,2]
[362368336,1748221843389,-469.73701143,0.00019994,2]
[362368337,1748221843398,-420.0,0.00019994,2]
[362368338,1748221843407,-420.0,0.00019994,2]
[362368339,1748221843417,-420.0,0.00019994,2]
[362368340,1748221843426,-420.0,0.00019994,2]
[362368341,1748221843435,-420.0,0.00019994,2]
[362368342,1748221843444,-420.0,0.00019994,2]
[362368343,1748221843453,-420.0,0.00019994,2]
[362368344,1748221843463,-420.0,0.00019994,2]
[362368345,1748221843472,-420.0,0.00019994,2]
[362368346,1748221843481,-420.0,0.00019994,2]
[362368347,1748221843490,-420.0,0.00019994,2]
[362368348,1748221843499,-420.0,0.00019994,2]
[362368349,1748221843509,-532.37,0.00019994,2]
[362368350,1748221843518,-420.0,0.00019994,2]
[362368351,1748221843527,-480.96,0.00019994,2]
[362368352,1748221843536,-420.0,0.00019994,2]
[362368353,1748221843546,-420.0,0.00019994,2]
[362368354,1748221843555,-420.0,0.00019994,2]
[362368355,1748221843564,-420.0,0.00019994,2]
[362368356,1748221843573,-156.14,0.00019994,2]
[362368357,1748221843582,-420.0,0.00019994,2]
[362368358,1748221843592,-420.0,0.00019994,2]
[362368359,1748221843601,-420.0,0.00019994,2]
[362368360,1748221843610,-725.62,0.00019994,2]
[362368361,1748221843619,-725.62,0.00019994,2]
[362368362,1748221843628,-420.0,0.00019994,2]
[362368363,1748221843637,-545.28169242,0.00019994,2]
[362368364,1748221843646,-420.0,0.00019994,2]
[362368365,1748221843654,-420.0,0.00019994,2]
[362368366,1748221843664,-420.0,0.00019994,2]
[362368367,1748221843673,-488.38,0.00019994,2]
[362368368,1748221843683,-420.0,0.00019994,2]
[362368369,1748221843694,-420.0,0.00019994,2]
[362368370,1748221843704,-219.93905926,0.00019994,2]
[362368371,1748221843713,-420.0,0.00019994,2]
[362368372,1748221843722,-420.0,0.00019994,2]
[362368373,1748221843731,-500.0,0.00019994,2]
[362368374,1748221843740,-430.86165277,0.00019994,2]
[362368375,1748221843750,-24335.1603416,0.00019995,2]
[362368376,1748221843761,-2473.114669,0.00019995,2]
[362368377,1748221843771,-131090.0557156,0.00019995,2]
[362368378,1748221843780,-144851.6199956,0.00019995,2]
[362368379,1748221843789,-15630.5215139,0.00019995,2]
[362368380,1748221843799,-11628.0,0.00019998,2]
[362368381,1748221843810,-420.0,0.00019998,2]
[362368382,1748221843819,-420.0,0.00019998,2]
[362368383,1748221843829,-420.0,0.00019998,2]
[362368384,1748221843840,-420.0,0.00019998,2]
[362368385,1748221843850,-519.12,0.00019998,2]
[362368386,1748221843859,-420.0,0.00019998,2]
[362368387,1748221843869,-381.60745971,0.00019998,2]
[362368388,1748221843878,-428.81,0.00019998,2]
[362368389,1748221843887,-420.0,0.00019998,2]
[362368390,1748221843896,-420.0,0.00019998,2]
[362368391,1748221843906,-159.95285527,0.00019998,2]
[362368392,1748221843916,-500.0,0.00019998,2]
[362368393,1748221843925,-1085.26940586,0.00019999,5]
[362368394,1748221843935,-1524.9243,0.00019999,2]
[362368395,1748221843944,-2000.0,0.00019999,2]
[362368396,1748221843953,-480.0,0.00019999,2]
[362368397,1748221843963,-1000.0,0.00019999,2]
[362368398,1748221843973,-420.0,0.00019999,2]
[362368399,1748221843983,-234.36,0.00019999,2]
[362368400,1748221843994,-420.0,0.00019999,2]
[362368401,1748221844005,-420.0,0.00019999,2]
[362368402,1748221844014,-420.0,0.00019999,2]
[362368403,1748221844025,-420.0,0.00019999,2]
[362368404,1748221844035,-420.0,0.00019999,2]
[362368405,1748221844045,-420.0,0.00019999,2]
[362368406,1748221844056,-420.0,0.00019999,2]
[362368407,1748221844066,-464.50872521,0.00019999,2]
[362368408,1748221844076,-469.46,0.00019999,2]
[362368409,1748221844086,-725.62,0.00019999,2]
[362368410,1748221844097,-725.62,0.00019999,2]
[362368411,1748221844107,-725.62,0.00019999,2]
[362368412,1748221844116,-725.62,0.00019999,2]
[362368413,1748221844126,-725.62,0.00019999,2]
[362368414,1748221844136,-725.62,0.00019999,2]
[362368415,1748221844146,-725.62,0.00019999,2]
[362368416,1748221844156,-725.62,0.00019999,2]
[362368417,1748221844167,-725.62,0.00019999,2]
[362368418,1748221844178,-725.62,0.00019999,2]
[362368419,1748221844189,-725.62,0.00019999,2]
[362368420,1748221844199,-725.62,0.00019999,2]
[362368421,1748221844209,-725.62,0.00019999,2]
[362368422,1748221844220,-725.62,0.00019999,2]
[362368423,1748221844231,-725.62,0.00019999,2]
[362368424,1748221844243,-725.62,0.00019999,2]
[362368425,1748221844254,-725.62,0.00019999,2]
[362368426,1748221844263,-725.62,0.00019999,2]
[362368427,1748221844273,-725.62,0.00019999,2]
[362368428,1748221844282,-725.62,0.00019999,2]
[362368429,1748221844292,-725.740003,0.00019999,2]
[362368430,1748221844302,-420.0,0.00019999,2]
[362368431,1748221844314,-420.0,0.00019999,2]
[362368432,1748221844323,-420.0,0.00019999,2]
[362368433,1748221844334,-420.0,0.00019999,2]
[362368434,1748221844344,-420.0,0.00019999,2]
[362368435,1748221844356,-420.0,0.00019999,2]
[362368436,1748221844366,-420.0,0.00019999,2]
[362368437,1748221844376,-420.0,0.00019999,2]
[362368438,1748221844388,-420.0,0.00019999,2]
[362368439,1748221844399,-420.0,0.00019999,2]
[362368440,1748221844409,-420.0,0.00019999,2]
[362368441,1748221844419,-420.0,0.00019999,2]
[362368442,1748221844429,-420.0,0.00019999,2]
[362368443,1748221844441,-420.0,0.00019999,2]
[362368444,1748221844451,-420.0,0.00019999,2]
[362368445,1748221844461,-420.0,0.00019999,2]
[362368446,1748221844470,-457.9175,0.00019999,2]
[362368447,1748221844479,-420.0,0.00019999,2]
[362368448,1748221844488,-420.0,0.00019999,2]
[362368449,1748221844497,-420.0,0.00019999,2]
[362368450,1748221844507,-420.0,0.00019999,2]
[362368451,1748221844516,-420.0,0.00019999,2]
[362368452,1748221844525,-420.0,0.00019999,2]
[362368453,1748221844534,-420.0,0.00019999,2]
[362368454,1748221844543,-504.72,0.00019999,2]
[362368455,1748221844552,-297.17058293,0.0002,2]
[362368456,1748221844561,-148446.73375851,0.0002,2]
[362368488,1748221845636,-420.0,0.00019898,2]
[362368490,1748221845647,-443.78262275,0.0002,2]
[362368492,1748221845656,-218.08,0.0002,2]
[362368494,1748221845665,-560.18737725,0.0002,2]
[362368496,1748221845676,-331.07,0.0002,2]
[362368499,1748221845692,-419.74262275,0.0002,2]
[362368501,1748221845701,-570.1567546,0.0002,2]
[362368503,1748221845713,-295.44402785,0.0002,2]
[362368505,1748221845732,-72.39921755,0.0002,2]
[362368507,1748221845741,-800.0,0.0002,2]
[362368509,1748221845751,-632.0,0.0002,2]
[362368511,1748221845763,-555.0,0.0002,2]
[362368513,1748221845773,-922.0,0.0002,2]
[362368515,1748221845782,-1463.0,0.0002,2]
[362368517,1748221845791,-586.0,0.0002,2]
[362368519,1748221845802,-1263.0,0.0002,2]
[362368521,1748221845812,-8487.35954515,0.0002,2]
[362368549,1748221846081,-255.24,0.0002,2]
[362368551,1748221846093,-85318.55165375,0.0002,2]
[362368558,1748221846196,-11303.17993225,0.0002,2]
[362368559,1748221846256,-643.76167333,0.0002,2]
[362368560,1748221846318,-4715.24374,0.0002,2]
[362368561,1748221846379,-676.86659964,0.0002,2]
[362369006,1748221922008,50000.0,0.000273,120]
[362369007,1748221940300,264.85,0.0002611,120]
[362369008,1748221988565,50000.0,0.000273,120]
[362369009,1748222114389,35186.65,0.00027397,120]
[362369010,1748222311237,250.0,0.00015,2]
[362369011,1748222736813,2446.38051852,9e-05,2]
[362369012,1748222755574,849.41038005,6.94e-05,2]